bitfinex/quotes_ETHUSD_20250620
["timestamp","ask_amount","ask_price","bid_price","bid_amount"]
[1750431924398,0.2123091,2497.8,2497.7,4.00368338]
[1750431925213,0.2123091,2497.8,2497.7,4.82851185]
[1750431925716,0.14577506,2497.8,2497.7,14.82851185]
[1750431925911,40.0,2499.5,2498.9,4.00163634]
[1750431926106,30.40982687,2499.5,2498.2,7.201]
[1750431926324,0.40982687,2499.5,2499.1,4.00141298]
[1750431926523,4.00103656,2499.4,2498.7,0.04001686]
[1750431926725,0.40010366,2499.3,2498.2,7.201]
[1750431926923,10.0,2499.4,2498.5,4.00234868]
[1750431927155,4.00096698,2499.4,2498.9,4.00163042]
[1750431927359,14.75907394,2499.6,2498.5,4.00234868]
[1750431927360,10.7584,2499.6,2499.1,4.00129183]
[1750431927651,0.55,2499.5,2499.1,4.00138141]
[1750431927825,0.55,2499.5,2499.0,4.0015491]
[1750431927826,14.55091135,2499.5,2499.0,4.0015491]
[1750431928148,0.55,2499.5,2498.3,14.09981062]
[1750431928348,0.55,2499.5,2498.3,14.09973177]
[1750431928658,11.20681864,2500.2,2498.7,4.80218108]
[1750431928659,0.7584,2500.1,2498.7,4.80218108]
[1750431928811,0.30752307,2500.0,2499.6,4.00054275]
[1750431929219,0.30752307,2500.0,2498.9,4.00176077]
[1750431929437,10.30752307,2500.0,2498.8,7.67821811]
[1750431929646,4.00018292,2499.9,2499.3,4.00098666]
[1750431929827,4.00018292,2499.9,2499.4,4.0009482]
[1750431930013,10.0,2500.0,2499.0,4.00148541]
[1750431930364,12.098,2500.0,2499.2,4.00115874]
[1750431930558,4.0006401,2499.6,2499.0,4.00152391]
[1750431930732,4.00088695,2499.5,2498.9,4.33572853]
[1750431931125,4.00088695,2499.5,2499.0,4.00156593]
[1750431931322,0.4000887,2499.4,2499.2,4.0012739]
[1750431931534,0.4000887,2499.4,2499.1,4.00128882]
[1750431931853,4.0006401,2499.6,2499.1,4.00142217]
[1750431932053,10.55,2499.7,2499.1,4.0013189]
[1750431932359,10.0,2499.7,2499.2,4.00113005]
[1750431932523,0.7922,2499.8,2499.2,4.00113005]
[1750431932855,0.7922,2499.8,2499.3,4.0010346]
[1750431933076,10.0,2499.7,2499.3,4.00104718]
[1750431933372,4.0006461,2499.6,2499.1,4.00136251]
[1750431933555,10.0,2499.7,2499.2,4.00114555]
[1750431933556,14.00056621,2499.7,2499.2,4.00114555]
[1750431933869,10.0,2499.7,2499.1,4.00132653]
[1750431934025,10.0,2499.6,2499.2,4.00126811]
[1750431934225,4.00055264,2499.7,2499.3,4.00102855]
[1750431934226,10.0,2499.7,2499.3,4.00102855]
[1750431934733,10.0,2499.7,2498.9,4.33580957]
[1750431934934,10.7922,2499.8,2499.4,4.00086771]
[1750431935259,10.7922,2499.8,2499.4,4.00087506]
[1750431935426,14.7925969,2499.8,2499.3,4.00101922]
[1750431935631,4.00055071,2499.7,2499.2,4.00122355]
[1750431935826,14.7925944,2499.8,2498.9,0.33406002]
[1750431936138,14.79254026,2499.8,2499.2,4.00115551]
[1750431936340,4.00048841,2499.7,2499.3,4.00102476]
[1750431936569,4.00048841,2499.7,2499.2,4.00120101]
[1750431936767,4.00058255,2499.7,2498.9,4.33578545]
[1750431936926,7.191,2499.6,2499.3,4.00106778]
[1750431937131,0.7191,2499.5,2499.4,4.00096023]
[1750431937372,0.55,2499.7,2499.3,4.00103161]
[1750431937667,4.00069453,2499.6,2499.1,4.00135649]
[1750431937837,4.55055765,2499.7,2499.2,4.00118821]
[1750431938039,0.55,2499.7,2499.2,4.00118821]
[1750431938266,0.55,2499.7,2499.3,4.00098427]
[1750431938267,4.5504843,2499.7,2499.3,4.00098427]
[1750431938569,4.00066417,2499.6,2499.1,4.00135918]
[1750431938735,4.55061992,2499.7,2499.2,4.00120213]
[1750431938936,0.55,2499.7,2499.3,4.0010862]
[1750431939136,0.7922,2499.8,2499.1,4.00144051]
[1750431939340,10.7922,2499.8,2498.9,0.33406002]
[1750431939542,14.7925946,2499.8,2499.3,4.00111055]
[1750431939745,0.7922,2499.8,2499.4,4.00094367]
[1750431939929,4.79252765,2499.8,2499.3,4.00104946]
[1750431940260,4.79252765,2499.8,2499.4,4.00094849]
[1750431940261,7.9812,2499.8,2499.4,4.00094849]
[1750431940465,4.00050154,2499.7,2499.3,4.00102787]
[1750431940675,4.00050154,2499.7,2499.2,4.00119179]
[1750431940676,1.19817015,2499.6,2499.2,4.00119179]
[1750431941029,1.19817015,2499.6,2498.9,0.33406002]
[1750431941226,1.19817015,2499.6,2499.3,4.00105446]
[1750431941632,1.19817015,2499.6,2499.2,4.00120637]
[1750431941833,4.0008298,2499.5,2499.0,4.00147635]
[1750431942066,10.0,2499.7,2499.0,4.00160064]
[1750431942245,10.0,2499.7,2499.3,4.0009842]
[1750431942630,0.40331396,2500.0,2498.9,4.33581243]
[1750431942855,10.0,2499.8,2499.4,4.00086753]
[1750431943234,14.00032273,2499.8,2499.3,4.0010404]
[1750431943562,10.0,2499.8,2499.4,4.00095867]
[1750431943766,10.0,2499.8,2499.5,4.0006486]
[1750431943934,10.0,2499.8,2499.5,4.00078601]
[1750431944135,2.087,2499.7,2499.6,4.0006401]
[1750431944477,12.087,2499.8,2499.6,4.00063953]
[1750431944686,10.40945436,2500.0,2499.7,4.00041321]
[1750431944842,0.66666667,2500.1,2499.1,4.7600251]
[1750431944843,0.66666667,2500.1,2499.9,4.00016]
[1750431945035,0.66666667,2500.1,2500.0,4.0]
[1750431948574,0.66666667,2500.1,2500.0,4.03999817]
[1750431948782,0.66666667,2500.1,2500.0,4.80401582]
[1750431948984,0.66666667,2500.1,2500.0,4.0]
[1750431950254,4.66658437,2500.1,2499.6,4.00055999]
[1750431950455,0.66666667,2500.1,2499.8,4.00020711]
[1750431950999,0.66666667,2500.1,2499.7,4.00038388]
[1750431951200,0.66666667,2500.1,2499.7,4.00032211]
[1750431951357,4.6665077,2500.1,2499.7,4.00036988]
[1750431951553,0.55,2499.9,2499.5,4.00066423]
[1750431951773,7.73,2499.9,2499.5,4.00070796]
[1750431952503,7.73,2499.9,2499.5,4.00073365]
[1750431952692,11.73026401,2499.9,2499.4,4.00087079]
[1750431952994,17.73,2499.9,2499.4,4.00086843]
[1750431953171,10.0,2499.8,2499.3,4.00098015]
[1750431953496,0.7905,2499.6,2499.0,4.00160064]
[1750431953684,0.7905,2499.6,2499.3,4.00103224]
[1750431953992,0.7905,2499.6,2499.5,4.00080016]
[1750431954168,2.087,2499.5,2499.4,4.00087262]
[1750431954894,2.087,2499.5,2499.3,4.00103298]
[1750431955075,2.087,2499.5,2499.4,4.00096023]
[1750431955406,2.087,2499.5,2499.3,4.00103568]
[1750431955592,2.087,2499.5,2498.9,4.33579142]
[1750431955593,2.8775,2499.6,2498.9,0.33406002]
[1750431955753,2.087,2499.5,2499.3,4.00102789]
[1750431955954,0.7905,2499.6,2499.3,4.00102789]
[1750431956198,2.087,2499.5,2499.3,4.00102789]
[1750431956418,2.087,2499.5,2499.2,4.00122504]
[1750431956621,2.087,2499.5,2499.1,4.00135244]
[1750431956800,2.087,2499.5,2499.2,4.00122464]
[1750431957190,2.087,2499.5,2499.3,4.00111203]
[1750431957508,10.19747899,2499.8,2499.0,4.00160064]
[1750431957710,2.087,2499.7,2499.4,4.00084626]
[1750431958017,2.087,2499.7,2499.4,4.00087294]
[1750431958309,2.087,2499.7,2499.3,4.00106479]
[1750431958608,0.19747899,2499.8,2499.2,4.00121577]
[1750431958806,0.19747899,2499.8,2498.9,0.37407117]
[1750431958807,12.28447899,2499.8,2498.9,0.33406002]
[1750431959013,12.28447899,2499.8,2499.5,4.00074344]
[1750431959514,12.28447899,2499.8,2499.4,4.00083599]
[1750431959679,12.28447899,2499.8,2499.4,4.00096006]
[1750431959880,0.55,2499.7,2499.3,4.00108877]
[1750431960214,12.28447899,2499.8,2498.9,0.33406002]
[1750431960510,7.173,2499.7,2499.1,4.00142716]
[1750431960712,12.28447899,2499.8,2499.7,4.00048005]
[1750431960713,0.19747899,2499.8,2499.7,4.00048005]
[1750431960902,0.19747899,2499.8,2499.6,4.00058505]
[1750431961077,0.19747899,2499.8,2499.7,4.00048005]
[1750431961981,0.19747899,2499.8,2499.5,4.00071923]
[1750431962411,0.19747899,2499.8,2499.4,4.00089374]
[1750431962412,0.19747899,2499.8,2499.4,4.00082616]
[1750431962715,0.19747899,2499.8,2499.0,4.7915898]
[1750431962716,0.19747899,2499.8,2499.5,4.0007759]
[1750431962912,2.28447899,2499.8,2499.7,4.00048005]
[1750431963335,0.19747899,2499.8,2499.7,4.00048005]
[1750431963642,0.19747899,2499.8,2499.7,4.83048015]
[1750431963845,0.19747899,2499.8,2499.7,5.71359178]
[1750431963997,0.19747899,2499.8,2499.7,15.71359178]
[1750431964197,0.19747899,2499.8,2499.7,15.67359168]
[1750431964828,0.19747899,2499.8,2499.7,22.84359168]
[1750431965034,0.19747899,2499.8,2499.7,5.67359168]
[1750431965407,0.19747899,2499.8,2499.7,5.71358926]
[1750431965937,0.19747899,2499.8,2499.7,5.67359168]
[1750431966114,0.19747899,2499.8,2499.7,22.84259168]
[1750431967201,12.074,2501.1,2500.3,0.7655]
[1750431967421,12.074,2501.1,2500.7,3.99878538]
[1750431967932,16.07226507,2501.1,2500.6,3.99895751]
[1750431968117,0.55,2500.8,2500.4,3.99935623]
[1750431968306,0.55,2500.8,2500.2,3.99968002]
[1750431968507,10.0,2500.6,2499.7,1.64791163]
[1750431968707,10.0,2500.3,2499.7,4.00034166]
[1750431969000,10.0,2500.1,2499.7,4.00042211]
[1750431969398,10.0,2500.1,2499.8,4.00023334]
[1750431969623,10.0,2500.1,2499.3,4.00100451]
[1750431969624,10.0,2500.1,2499.4,4.00095579]
[1750431969823,10.0,2500.1,2499.9,4.00005649]
[1750431970141,10.0,2500.1,2499.8,4.00031555]
[1750431970142,10.0,2500.1,2499.8,4.00025216]
[1750431970640,10.0,2500.1,2499.5,4.00080016]
[1750431970828,10.0,2500.1,2499.7,4.00038281]
[1750431970997,10.0,2500.1,2499.6,4.0006401]
[1750431971201,10.0,2500.1,2499.8,4.00021432]
[1750431971797,10.0,2500.1,2499.7,4.00042206]
[1750431972000,0.55,2500.0,2499.6,4.00056079]
[1750431972201,12.074,2499.9,2499.3,4.00112031]
[1750431972416,12.074,2499.9,2499.7,4.00037997]
[1750431972614,12.074,2499.9,2499.2,0.80480767]
[1750431972615,7.164,2499.8,2499.6,4.00057147]
[1750431972897,7.164,2499.8,2499.7,4.00048005]
[1750431973705,7.164,2499.8,2499.5,4.00068069]
[1750431974055,7.164,2499.8,2499.7,4.00048005]
[1750431974518,7.164,2499.8,2499.6,4.00057307]
[1750431974698,7.164,2499.8,2499.7,4.00048005]
[1750431974904,7.164,2499.8,2499.6,4.00059643]
[1750431975215,10.0,2499.9,2499.1,4.00144051]
[1750431975398,10.0,2499.9,2499.8,4.00032002]
[1750431975597,19.236,2499.9,2499.7,4.00040397]
[1750431975850,10.0,2500.1,2499.3,0.7891]
[1750431976060,10.0,2500.1,2499.7,4.00043428]
[1750431976204,10.0,2500.1,2499.8,4.00029427]
[1750431976404,10.0,2500.1,2499.8,4.00024517]
[1750431976929,10.0249,2500.2,2500.1,3.99984]
[1750431976930,0.7889,2500.2,2500.1,3.99984]
[1750431977131,20.0239,2500.2,2500.1,3.99984]
[1750431977505,10.0,2500.1,2499.9,4.00003482]
[1750431977725,10.0239,2500.2,2499.9,4.00003482]
[1750431977906,10.0,2500.1,2499.3,4.79017596]
[1750431978101,10.0,2500.1,2499.8,4.00024611]
[1750431978353,9.234,2500.0,2499.4,4.00096023]
[1750431978649,7.16,2499.9,2499.8,4.00032002]
[1750431978940,7.16,2499.9,2499.3,4.79010282]
[1750431979142,7.16,2499.9,2499.3,0.51902469]
[1750431979365,0.7905,2499.6,2499.2,4.00121365]
[1750431979567,7.9495,2499.6,2499.2,4.00115792]
[1750431979855,4.79123097,2499.6,2499.0,4.00146128]
[1750431980084,10.0,2499.4,2498.9,0.33406002]
[1750431980221,17.8437556,2499.0,2498.9,0.33406002]
[1750431980418,26.3109556,2499.0,2498.9,0.33406002]
[1750431980623,1.3082,2499.0,2498.9,0.33406002]
[1750431980849,10.0,2498.9,2498.3,4.00261602]
[1750431981154,10.0,2498.9,2497.7,4.82934683]
[1750431981309,10.0,2498.8,2498.4,4.00241914]
[1750431981660,7.158,2498.7,2498.4,4.00241914]
[1750431981952,11.16015997,2498.7,2498.2,4.00284599]
[1750431982108,4.00247195,2498.5,2497.8,0.48293468]
[1750431982316,0.7582,2498.3,2498.0,4.00319467]
[1750431982548,0.7582,2498.3,2497.9,4.00328463]
[1750431983056,0.7582,2498.3,2497.5,4.0039847]
[1750431983057,0.7582,2498.3,2497.5,4.00397828]
[1750431983209,7.158,2498.2,2497.4,4.82992814]
[1750431983409,7.158,2498.2,2498.0,4.00311133]
[1750431983764,7.158,2498.2,2498.0,4.00318457]
[1750431984059,7.158,2498.2,2498.1,4.00304231]
[1750431984358,9.232,2498.4,2498.1,4.80359256]
[1750431984647,9.232,2498.4,2498.2,4.00286879]
[1750431984808,7.158,2498.6,2498.4,4.00253652]
[1750431985010,17.158,2498.6,2498.5,4.00231479]
[1750431985228,17.158,2498.6,2498.5,4.00240144]
[1750431985712,19.232,2498.7,2498.6,4.00214613]
[1750431986023,10.0,2498.6,2498.3,4.00260294]
[1750431986224,9.232,2498.7,2498.4,4.00253004]
[1750431986536,10.0,2498.6,2498.4,4.00248544]
[1750431986857,0.7816,2499.3,2498.4,0.40024854]
[1750431987026,10.0126,2499.3,2498.6,4.00224125]
[1750431987221,2.075,2499.3,2499.2,4.0012804]
[1750431988857,2.075,2499.3,2498.5,7.9627]
[1750431989067,9.23,2499.3,2498.9,4.00167961]
[1750431989357,9.23,2499.3,2498.5,0.8067]
[1750431989358,4.00129395,2499.2,2498.7,4.00199812]
[1750431989510,9.23,2499.3,2498.6,4.00224125]
[1750431989709,10.0,2499.4,2498.6,4.00224125]
[1750431990044,9.23,2499.2,2499.1,4.00144051]
[1750431990247,0.7816,2499.6,2499.2,4.00120221]
[1750431990420,10.0,2499.4,2499.0,4.0015267]
[1750431990623,10.0,2499.4,2498.6,4.00224125]
[1750431990844,10.0,2499.4,2499.0,4.00156612]
[1750431991035,10.0,2499.4,2498.6,4.00214185]
[1750431991237,4.00137151,2499.2,2498.7,4.00195021]
[1750431991441,7.153,2499.1,2498.3,4.00270555]
[1750431991616,7.153,2499.1,2498.7,4.00196762]
[1750431992013,0.55,2499.3,2499.0,4.00148823]
[1750431992014,7.153,2499.3,2499.0,4.00148823]
[1750431992253,7.153,2499.3,2498.8,0.04002148]
[1750431992254,2.075,2499.4,2499.2,4.0012804]
[1750431992455,0.7816,2499.6,2499.2,4.0012804]
[1750431992677,0.7816,2499.6,2499.4,4.00096023]
[1750431992847,7.152,2499.6,2499.5,4.00080016]
[1750431993045,2.075,2499.7,2499.6,4.0006401]
[1750431993831,2.075,2499.7,2499.5,4.00072461]
[1750431994039,2.075,2499.7,2498.8,0.7761]
[1750431994249,2.075,2499.7,2499.5,4.00078727]
[1750431994471,7.151,2499.7,2499.6,4.0006401]
[1750431995083,7.151,2499.7,2498.8,4.77788499]
[1750431995376,7.151,2499.7,2499.5,4.00078195]
[1750431995579,7.151,2499.7,2499.6,4.0006401]
[1750431995791,7.151,2499.7,2498.9,1.27293045]
[1750431995792,7.151,2499.7,2499.3,4.00097474]
[1750431996249,7.151,2499.7,2499.5,4.00069264]
[1750431996448,7.151,2499.7,2499.4,4.00087474]
[1750431996671,7.151,2499.7,2498.9,1.27293045]
[1750431996849,7.151,2499.7,2498.8,0.7761]
[1750431996850,7.151,2499.7,2499.0,0.04001171]
[1750431997037,7.151,2499.7,2499.3,4.00106226]
[1750431997841,10.0,2500.2,2498.8,0.7761]
[1750431998052,7.148,2500.1,2498.9,0.0400117]
[1750431998402,0.8257,2499.7,2498.9,2.26066862]
[1750431998557,13.21065327,2499.6,2499.1,4.0013563]
[1750431998753,4.00097926,2499.4,2498.5,4.76229869]
[1750431998971,7.147,2499.3,2498.5,0.76]
[1750431999276,11.14827256,2499.3,2498.8,4.00180658]
[1750431999654,11.14827256,2499.3,2498.8,4.00184331]
[1750431999861,7.147,2499.3,2498.9,4.00167326]
[1750432000271,7.147,2499.3,2499.0,4.00151757]
[1750432000478,9.208,2499.4,2498.7,0.0400167]
[1750432000672,9.208,2499.4,2498.7,4.48225751]
[1750432000880,9.208,2499.4,2498.9,4.00175445]
[1750432000881,13.20909218,2499.4,2498.9,4.00175445]
[1750432001413,4.77735284,2499.2,2498.7,4.00199565]
[1750432001598,7.146,2499.1,2498.8,4.00191438]
[1750432001969,7.146,2499.1,2498.2,0.8332]
[1750432002170,11.14745395,2499.1,2498.3,1.12334147]
[1750432002370,7.146,2499.1,2498.7,4.00200991]
[1750432002571,7.146,2499.1,2498.8,4.00189447]
[1750432002770,7.146,2499.1,2498.7,4.00198697]
[1750432002971,7.146,2499.1,2498.8,4.00191339]
[1750432003504,7.146,2499.1,2498.7,4.00201039]
[1750432004278,11.14745902,2499.1,2498.5,4.00236378]
[1750432004481,7.146,2499.1,2498.7,4.00195219]
[1750432004675,10.0,2499.0,2498.2,0.8332]
[1750432004888,10.0,2499.0,2498.7,4.00195709]
[1750432005088,0.776,2499.2,2499.0,4.00152695]
[1750432005308,19.205,2499.1,2499.0,4.00160064]
[1750432005884,19.205,2499.1,2498.7,4.00199506]
[1750432006088,19.205,2499.1,2498.8,4.00191916]
[1750432006309,19.205,2499.1,2498.9,4.00171481]
[1750432006519,19.205,2499.1,2498.8,4.00187943]
[1750432006719,19.205,2499.1,2498.8,4.00188548]
[1750432007134,19.205,2499.1,2498.6,4.0021286]
[1750432007434,19.205,2499.1,2498.7,4.00199674]
[1750432007787,19.205,2499.1,2498.5,4.00230148]
[1750432007788,4.00166784,2499.0,2498.5,4.00232589]
[1750432008111,19.205,2499.1,2498.7,4.00207398]
[1750432008311,23.20644718,2499.1,2498.7,4.00207398]
[1750432008505,19.205,2499.1,2498.7,4.00207398]
[1750432009024,0.55,2499.0,2498.7,4.00207398]
[1750432009393,0.55,2499.0,2498.8,4.0019191]
[1750432009921,0.55,2499.0,2498.3,4.00271695]
[1750432010085,2.8784,2499.9,2498.7,4.00192523]
[1750432010285,10.0174,2499.9,2499.5,4.00072529]
[1750432011123,10.0,2499.6,2499.2,4.0012804]
[1750432011285,7.138,2499.5,2498.8,0.7505]
[1750432011491,7.138,2499.5,2499.2,4.00116329]
[1750432011705,7.138,2499.5,2499.2,4.00116297]
[1750432012124,7.138,2499.5,2498.8,4.75235466]
[1750432012125,2.062,2499.5,2498.8,0.7505]
[1750432012432,2.062,2499.5,2499.4,4.00096023]
[1750432012823,10.0,2499.8,2499.5,4.00080016]
[1750432013023,9.199,2499.7,2499.4,4.00086656]
[1750432013435,9.199,2499.7,2499.4,4.00092321]
[1750432014023,10.0,2499.6,2498.9,0.47524751]
[1750432014352,10.0,2499.6,2498.9,4.00176077]
[1750432014646,10.0,2499.6,2499.2,4.00114842]
[1750432014948,0.55,2499.5,2499.2,4.00126945]
[1750432015110,7.684,2499.5,2499.2,4.00126945]
[1750432015821,7.684,2499.5,2499.2,4.00118839]
[1750432016018,0.8164,2499.9,2499.2,0.80026225]
[1750432016223,2.062,2499.9,2498.9,4.79436077]
[1750432016460,2.062,2499.9,2499.6,4.00057153]
[1750432016648,2.062,2499.9,2499.8,4.00032002]
[1750432016833,9.195,2499.9,2499.7,4.00035332]
[1750432017033,9.195,2499.9,2499.8,4.00020872]
[1750432017243,2.062,2500.3,2500.1,3.99984]
[1750432017547,0.8273,2500.5,2500.2,3.99955999]
[1750432017750,2.8893,2500.5,2499.7,4.00048005]
[1750432017922,7.132,2500.5,2499.8,0.40004801]
[1750432018122,7.132,2500.5,2500.4,3.9993601]
[1750432018322,0.8273,2500.8,2500.1,0.7899]
[1750432018559,7.9583,2500.8,2500.5,3.99909235]
[1750432018755,7.9583,2500.8,2500.7,3.99888031]
[1750432019458,0.55,2500.8,2500.1,0.7899]
[1750432019656,7.681,2500.8,2500.5,3.99914652]
[1750432019835,7.681,2500.8,2500.1,0.7899]
[1750432019836,7.681,2500.8,2500.6,3.99899902]
[1750432020159,7.681,2500.8,2500.1,4.78973015]
[1750432020160,7.13,2500.9,2500.7,3.99872728]
[1750432020372,7.13,2500.9,2500.5,3.99919598]
[1750432020530,3.99891375,2500.7,2499.8,0.40004801]
[1750432020735,0.55,2500.4,2499.5,0.8254]
[1750432020944,0.55,2500.2,2499.5,10.8254]
[1750432021145,0.55,2500.0,2499.6,4.00056778]
[1750432021369,10.8274,2499.8,2499.2,0.8254]
[1750432021570,0.55,2499.7,2499.2,4.00120204]
[1750432021846,7.128,2499.6,2499.5,4.00070917]
[1750432022069,7.128,2499.6,2499.4,4.00087411]
[1750432022274,7.128,2499.6,2499.2,4.00124865]
[1750432022444,7.128,2499.6,2499.0,4.00152037]
[1750432022445,4.55091338,2499.5,2499.0,4.00152037]
[1750432022787,0.8213,2499.2,2498.5,0.7616]
[1750432022936,9.189,2499.1,2498.8,4.00183309]
[1750432023131,9.189,2499.1,2498.7,4.0020097]
[1750432023336,9.189,2499.1,2498.5,0.7616]
[1750432023532,9.189,2499.1,2497.3,4.00429993]
[1750432023533,4.80756077,2498.9,2497.2,4.00447354]
[1750432023769,0.55,2498.3,2497.3,0.33427405]
[1750432024004,4.55316336,2498.1,2497.5,4.00399365]
[1750432024152,4.00337491,2497.9,2497.6,0.3342339]
[1750432024347,7.126,2497.8,2497.6,0.3342339]
[1750432024566,4.00368338,2497.7,2496.9,10.0]
[1750432024876,2.047,2497.6,2497.2,4.00439017]
[1750432025379,0.7519,2497.8,2497.5,4.00390001]
[1750432025533,4.75550551,2497.8,2497.2,4.0043638]
[1750432025736,0.7519,2497.8,2497.5,4.00398336]
[1750432025936,9.172,2497.7,2497.4,4.00411968]
[1750432026237,0.55,2497.6,2497.2,0.0400407]
[1750432026438,7.125,2497.6,2497.4,4.00404812]
[1750432026843,7.125,2497.6,2497.4,4.00409624]
[1750432027047,7.125,2497.6,2497.3,4.00431902]
[1750432027248,7.125,2497.6,2497.0,0.5605879]
[1750432027434,11.53425136,2497.8,2497.0,0.59164646]
[1750432027639,9.173,2497.7,2497.1,0.04004567]
[1750432027839,0.55,2497.6,2497.1,4.00464538]
[1750432028137,2.048,2497.6,2497.5,4.00392331]
[1750432028353,9.173,2497.6,2497.4,4.00408819]
[1750432028684,10.0,2497.5,2497.0,4.00468344]
[1750432028900,10.0,2497.5,2496.8,5.35587665]
[1750432029040,2.048,2497.5,2497.4,4.00402623]
[1750432029242,9.172,2497.5,2497.4,4.00402623]
[1750432029438,9.172,2497.5,2497.4,4.00416433]
[1750432029674,10.0,2497.9,2497.8,4.0035231]
[1750432029882,19.61,2498.0,2497.9,4.00336282]
[1750432030041,26.735,2498.0,2497.9,4.00336282]
[1750432030774,10.0,2498.0,2497.9,4.00336282]
[1750432030984,7.5237035,2498.2,2497.6,4.00379044]
[1750432031156,7.124,2498.2,2497.9,4.00325035]
[1750432031571,7.124,2498.2,2497.5,4.004004]
[1750432031777,7.124,2498.2,2498.1,4.00304231]
[1750432032288,2.048,2498.3,2498.1,4.00304231]
[1750432032289,7.123,2498.3,2498.1,4.0028981]
[1750432032485,7.123,2498.3,2497.2,10.0]
[1750432032486,7.123,2498.3,2497.9,4.00322091]
[1750432032686,7.123,2498.3,2497.2,10.0]
[1750432032876,0.55,2498.1,2497.5,4.004004]
[1750432033076,7.123,2498.3,2497.5,4.004004]
[1750432033280,7.673,2498.3,2498.0,4.00313084]
[1750432033482,7.673,2498.3,2497.2,17.123]
[1750432033689,7.673,2498.3,2497.9,4.00335248]
[1750432034095,7.673,2498.3,2498.0,4.0031995]
[1750432034414,7.123,2498.2,2497.5,4.004004]
[1750432034581,7.123,2498.2,2497.8,4.00344558]
[1750432034761,7.123,2498.2,2497.9,4.00331485]
[1750432035170,7.123,2498.2,2498.1,4.00304231]
[1750432035372,0.8207,2498.7,2497.9,0.80067604]
[1750432035569,2.048,2498.9,2498.1,0.7642]
[1750432035885,0.7982,2499.1,2498.9,4.00172478]
[1750432036073,0.7982,2499.1,2498.2,0.04002206]
[1750432036074,7.121,2499.2,2499.1,4.00144051]
[1750432036272,0.7982,2499.4,2499.2,4.00112813]
[1750432036471,0.7982,2499.4,2499.1,4.00132759]
[1750432036707,0.7982,2499.4,2499.3,4.00112031]
[1750432036876,7.121,2499.5,2499.2,4.00116078]
[1750432037414,7.121,2499.5,2498.9,4.00176077]
[1750432037617,40.8034,2500.3,2499.3,4.00103106]
[1750432037916,2.048,2500.1,2499.7,4.00040032]
[1750432038287,2.048,2500.1,2499.8,4.00022045]
[1750432038488,2.048,2500.1,2499.9,4.00013982]
[1750432038682,2.048,2500.1,2499.9,4.00015321]
[1750432038897,3.04514,2500.1,2499.3,0.7871]
[1750432039105,4.0,2500.0,2499.0,0.7626]
[1750432039306,0.55,2499.8,2499.4,4.00082542]
[1750432039710,0.55,2499.8,2499.5,4.0007583]
[1750432040099,0.55,2499.8,2499.4,4.00087587]
[1750432040318,0.55,2499.6,2499.0,0.7626]
[1750432040510,0.7878,2499.7,2498.7,10.0]
[1750432040820,17.667,2500.0,2499.0,0.7788]
[1750432041032,2.8358,2500.1,2498.8,0.0400094]
[1750432041033,2.048,2500.1,2500.0,4.0]
[1750432041184,2.048,2500.1,2499.5,0.7788]
[1750432041522,2.048,2500.1,2499.7,4.00040636]
[1750432041823,2.048,2500.1,2499.3,4.00100765]
[1750432041824,2.048,2500.1,2500.0,4.0]
[1750432042028,0.55,2500.0,2499.7,4.00037807]
[1750432042525,0.55,2500.0,2499.2,7.8938]
[1750432042708,4.55043132,2499.8,2499.3,4.00104843]
[1750432042900,7.665,2499.8,2499.3,4.00098277]
[1750432043102,11.66534299,2499.8,2499.3,4.00098277]
[1750432043326,7.665,2499.8,2499.6,4.00054005]
[1750432043530,7.665,2499.8,2499.5,4.00073689]
[1750432043995,12.91476319,2499.8,2499.3,4.00099789]
[1750432044202,7.665,2499.8,2498.9,0.804]
[1750432044400,11.66535519,2499.8,2499.3,4.00104988]
[1750432044803,7.665,2499.8,2499.4,4.00084581]
[1750432044999,7.665,2499.8,2499.5,4.00079559]
[1750432045227,0.55,2499.8,2499.6,4.00060589]
[1750432045417,10.0,2500.3,2499.8,4.00018496]
[1750432045418,0.78,2500.2,2499.8,4.00018496]
[1750432045613,0.78,2500.2,2499.0,4.00160064]
[1750432045614,3.99984,2500.1,2499.5,4.00079323]
[1750432045829,0.55,2499.8,2499.4,4.00085356]
[1750432046137,9.16,2500.3,2499.6,0.8296]
[1750432046288,9.16,2500.3,2500.2,3.99968002]
[1750432046493,2.048,2500.3,2500.2,3.99968002]
[1750432046904,10.0,2500.5,2500.2,3.99963098]
[1750432047106,12.4581,2500.8,2499.7,4.00046416]
[1750432047305,12.4581,2500.8,2500.5,3.99910877]
[1750432047532,10.0,2500.7,2500.5,3.99918903]
[1750432047701,12.4581,2500.8,2500.4,3.99929052]
[1750432047890,10.4101,2500.8,2500.4,3.9992917]
[1750432048096,9.613,2500.8,2500.1,3.99984]
[1750432048389,10.0,2500.8,2500.2,0.399984]
[1750432048596,0.55,2500.7,2500.4,3.99933947]
[1750432048817,0.55,2500.7,2500.2,0.399984]
[1750432048818,0.55,2500.6,2500.2,3.9995571]
[1750432049018,0.55,2500.6,2500.3,3.99950814]
[1750432049222,7.8881,2500.9,2500.3,3.99947966]
[1750432049496,7.659,2500.8,2500.3,4.39934446]
[1750432049722,7.659,2500.8,2500.3,3.99948124]
[1750432049926,4.54902824,2500.7,2500.2,3.99961313]
[1750432050234,4.54893643,2500.7,2500.2,3.99961313]
[1750432050532,0.55,2500.5,2500.1,3.9997346]
[1750432050896,4.54920432,2500.5,2500.0,3.99993485]
[1750432051096,0.55,2500.5,2500.1,3.99982242]
[1750432051297,0.55,2500.7,2499.8,0.48300642]
[1750432051497,0.55,2500.7,2499.9,0.03999795]
[1750432051697,0.55,2500.7,2499.6,0.7936]
[1750432051698,0.55,2500.7,2500.3,3.99942058]
[1750432051994,0.55,2500.5,2500.2,3.99959205]
[1750432052194,0.55,2500.5,2500.1,3.99974571]
[1750432052494,4.54923139,2500.5,2500.1,3.99974571]